[Event "Late-Titled-Tuesday-Blitz-March-05-2024"]
[Site "Chess.com"]
[Date "2024.03.05"]
[Round "7"]
[White "Vegan4future"]
[Black "Mikhail_Golubev"]
[Result "1-0"]
[WhiteElo "2494"]
[BlackElo "2625"]
[TimeControl "180+1"]
[EndTime "15:15:05 PST"]
[Termination "Vegan4future won on time"]

1. e4 {[%clk 0:03:00.9]} 1... c5 {[%clk 0:03:00]} 2. Nf3 {[%clk 0:02:59]} 2...
d6 {[%clk 0:03:00.1]} 3. Bb5+ {[%clk 0:02:49.3]} 3... Bd7 {[%clk 0:02:59.9]} 4.
Bxd7+ {[%clk 0:02:46.1]} 4... Nxd7 {[%clk 0:03:00.8]} 5. c4 {[%clk 0:02:42.7]}
5... Ngf6 {[%clk 0:02:57.2]} 6. Nc3 {[%clk 0:02:42.3]} 6... Ne5 {[%clk
0:02:49.3]} 7. O-O {[%clk 0:02:34]} 7... Nxf3+ {[%clk 0:02:48.3]} 8. Qxf3 {[%clk
0:02:34.9]} 8... g6 {[%clk 0:02:46]} 9. d3 {[%clk 0:02:34.5]} 9... Bg7 {[%clk
0:02:45.8]} 10. Bg5 {[%clk 0:02:31.5]} 10... O-O {[%clk 0:02:39.1]} 11. Rab1
{[%clk 0:02:26.1]} 11... h6 {[%clk 0:02:27.8]} 12. Be3 {[%clk 0:02:21.5]} 12...
Nd7 {[%clk 0:02:26.3]} 13. Qe2 {[%clk 0:01:56.8]} 13... Kh7 {[%clk 0:02:14]} 14.
f4 {[%clk 0:01:51.7]} 14... f5 {[%clk 0:02:14.2]} 15. Bd2 {[%clk 0:01:44.4]}
15... e6 {[%clk 0:01:56.9]} 16. Kh1 {[%clk 0:01:44]} 16... Nf6 {[%clk
0:01:47.5]} 17. a3 {[%clk 0:01:42.3]} 17... Qd7 {[%clk 0:01:43.8]} 18. b4 {[%clk
0:01:41.9]} 18... b6 {[%clk 0:01:31]} 19. Nd1 {[%clk 0:01:23.4]} 19... fxe4
{[%clk 0:01:20.5]} 20. dxe4 {[%clk 0:01:23.3]} 20... d5 {[%clk 0:01:20.6]} 21.
e5 {[%clk 0:01:18.7]} 21... Ne4 {[%clk 0:01:20.6]} 22. Be1 {[%clk 0:01:12.3]}
22... cxb4 {[%clk 0:01:01]} 23. Bxb4 {[%clk 0:01:06.9]} 23... Rfc8 {[%clk
0:01:00.8]} 24. cxd5 {[%clk 0:01:06.7]} 24... Qxd5 {[%clk 0:00:56.6]} 25. Ne3
{[%clk 0:00:56.5]} 25... Qb7 {[%clk 0:00:52]} 26. Rfe1 {[%clk 0:00:51.9]} 26...
Nc3 {[%clk 0:00:41.8]} 27. Bxc3 {[%clk 0:00:51.4]} 27... Rxc3 {[%clk 0:00:42.4]}
28. a4 {[%clk 0:00:48.6]} 28... Rac8 {[%clk 0:00:39.4]} 29. Rbd1 {[%clk
0:00:45.9]} 29... Qe4 {[%clk 0:00:33.4]} 30. Ng4 {[%clk 0:00:35.8]} 30... Qxe2
{[%clk 0:00:22.2]} 31. Rxe2 {[%clk 0:00:36.7]} 31... Rc1 {[%clk 0:00:20.5]} 32.
Ree1 {[%clk 0:00:36.6]} 32... Rxd1 {[%clk 0:00:14.3]} 33. Rxd1 {[%clk
0:00:37.5]} 33... h5 {[%clk 0:00:12]} 34. Nf2 {[%clk 0:00:37.1]} 34... Rc4
{[%clk 0:00:10.8]} 35. g3 {[%clk 0:00:37.5]} 35... Rxa4 {[%clk 0:00:10.3]} 36.
Rd7 {[%clk 0:00:38.1]} 36... Kg8 {[%clk 0:00:10.3]} 37. Nh3 {[%clk 0:00:36.6]}
37... Bh6 {[%clk 0:00:08]} 38. Re7 {[%clk 0:00:35.9]} 38... Rb4 {[%clk
0:00:06.5]} 39. Rxe6 {[%clk 0:00:36]} 39... Kf7 {[%clk 0:00:05.9]} 40. Rc6
{[%clk 0:00:35.6]} 40... a5 {[%clk 0:00:05.3]} 41. Nf2 {[%clk 0:00:31.9]} 41...
a4 {[%clk 0:00:04.7]} 42. Rc7+ {[%clk 0:00:30.3]} 42... Ke6 {[%clk 0:00:04]} 43.
Ra7 {[%clk 0:00:29.9]} 43... b5 {[%clk 0:00:03]} 44. Kg2 {[%clk 0:00:28.9]}
44... Bf8 {[%clk 0:00:02.1]} 45. Kf3 {[%clk 0:00:28.1]} 45... Rd4 {[%clk
0:00:01.3]} 46. Ra6+ {[%clk 0:00:24.7]} 1-0

[Event "Late-Titled-Tuesday-Blitz-March-05-2024"]
[Site "Chess.com"]
[Date "2024.03.05"]
[Round "7"]
[White "Malev212"]
[Black "GilbertoHernandezAmura"]
[Result "1-0"]
[WhiteElo "2630"]
[BlackElo "2468"]
[TimeControl "180+1"]
[EndTime "15:15:06 PST"]
[Termination "Malev212 won by resignation"]

1. e4 {[%clk 0:02:54.3]} 1... g6 {[%clk 0:02:56.5]} 2. d4 {[%clk 0:02:50.4]}
2... Bg7 {[%clk 0:02:56.8]} 3. Nc3 {[%clk 0:02:50]} 3... c5 {[%clk 0:02:54.3]}
4. Be3 {[%clk 0:02:45.1]} 4... Nc6 {[%clk 0:02:49.5]} 5. dxc5 {[%clk 0:02:42.4]}
5... Bxc3+ {[%clk 0:02:35.5]} 6. bxc3 {[%clk 0:02:41.3]} 6... Nf6 {[%clk
0:02:36.2]} 7. f3 {[%clk 0:02:39]} 7... Qa5 {[%clk 0:02:34.9]} 8. Ne2 {[%clk
0:02:37.8]} 8... O-O {[%clk 0:02:31.4]} 9. h4 {[%clk 0:02:35.1]} 9... d6 {[%clk
0:02:26.7]} 10. cxd6 {[%clk 0:02:33]} 10... Rd8 {[%clk 0:02:26.3]} 11. Bf4
{[%clk 0:02:17.2]} 11... exd6 {[%clk 0:02:12.7]} 12. Bg5 {[%clk 0:02:09.5]}
12... Kg7 {[%clk 0:02:11.7]} 13. Qd2 {[%clk 0:02:09.4]} 13... h5 {[%clk
0:01:36.8]} 14. Nd4 {[%clk 0:02:01]} 14... Bd7 {[%clk 0:01:01.2]} 15. Bc4 {[%clk
0:01:54.7]} 15... Ne5 {[%clk 0:00:58.2]} 16. Bb3 {[%clk 0:01:53.2]} 16... Rac8
{[%clk 0:00:54]} 17. O-O {[%clk 0:01:42.5]} 17... Qxc3 {[%clk 0:00:51.4]} 18.
Qxc3 {[%clk 0:01:32.2]} 18... Rxc3 {[%clk 0:00:51.1]} 19. f4 {[%clk 0:01:32.2]}
19... Neg4 {[%clk 0:00:24.6]} 20. e5 {[%clk 0:01:30.5]} 20... dxe5 {[%clk
0:00:20.6]} 21. fxe5 {[%clk 0:01:30]} 21... Bf5 {[%clk 0:00:18.4]} 22. Bxf6+
{[%clk 0:01:21.7]} 22... Nxf6 {[%clk 0:00:17.4]} 23. Nxf5+ {[%clk 0:01:20.8]}
23... gxf5 {[%clk 0:00:18]} 24. exf6+ {[%clk 0:01:20.9]} 24... Kxf6 {[%clk
0:00:18.9]} 25. Rf2 {[%clk 0:01:17.6]} 25... b5 {[%clk 0:00:16]} 26. Raf1 {[%clk
0:01:15.7]} 26... Rc5 {[%clk 0:00:16.4]} 27. Rf4 {[%clk 0:01:13.9]} 27... a5
{[%clk 0:00:16.4]} 28. a4 {[%clk 0:01:13]} 28... b4 {[%clk 0:00:16.9]} 29. Re1
{[%clk 0:01:10.8]} 29... Rd2 {[%clk 0:00:14.3]} 30. Rf2 {[%clk 0:01:07.4]} 30...
Rd4 {[%clk 0:00:13.6]} 31. g3 {[%clk 0:01:07.5]} 31... Rc3 {[%clk 0:00:12.9]}
32. Kh2 {[%clk 0:01:05.9]} 32... Rg4 {[%clk 0:00:13]} 33. Rg1 {[%clk 0:01:04.3]}
33... Ke5 {[%clk 0:00:13.5]} 34. Rgg2 {[%clk 0:01:02.6]} 34... Ke4 {[%clk
0:00:11.9]} 35. Bxf7 {[%clk 0:01:00.8]} 35... Rg7 {[%clk 0:00:11.8]} 36. Bxh5
{[%clk 0:00:59.9]} 36... Ra3 {[%clk 0:00:10.7]} 37. Be2 {[%clk 0:00:57.3]} 37...
Rxa4 {[%clk 0:00:10.2]} 38. Bd3+ {[%clk 0:00:57.4]} 38... Ke3 {[%clk 0:00:09.9]}
39. Re2+ {[%clk 0:00:55.5]} 39... Kd4 {[%clk 0:00:10]} 40. Bxf5 {[%clk 0:00:55]}
40... Ra3 {[%clk 0:00:10.1]} 41. h5 {[%clk 0:00:53.4]} 41... Rg5 {[%clk
0:00:09.5]} 42. g4 {[%clk 0:00:53.4]} 42... Rc3 {[%clk 0:00:05.1]} 43. Rd2+
{[%clk 0:00:48.1]} 43... Ke3 {[%clk 0:00:04.8]} 44. Rge2+ {[%clk 0:00:47.2]}
44... Kf3 {[%clk 0:00:05.4]} 45. Rf2+ {[%clk 0:00:46.6]} 45... Ke3 {[%clk
0:00:05.5]} 46. Rde2+ {[%clk 0:00:46.7]} 46... Kd4 {[%clk 0:00:06.1]} 47. Rf4+
{[%clk 0:00:46.3]} 47... Kd5 {[%clk 0:00:06]} 48. h6 {[%clk 0:00:45.9]} 48...
Rc6 {[%clk 0:00:05.9]} 49. h7 {[%clk 0:00:44.8]} 49... Rh6+ {[%clk 0:00:06]} 50.
Kg3 {[%clk 0:00:45]} 50... Rg7 {[%clk 0:00:04.7]} 51. Rh2 {[%clk 0:00:44.1]}
51... Rhxh7 {[%clk 0:00:01.7]} 52. Bxh7 {[%clk 0:00:41.6]} 1-0

[Event "Late-Titled-Tuesday-Blitz-March-05-2024"]
[Site "Chess.com"]
[Date "2024.03.05"]
[Round "7"]
[White "Burgsvik"]
[Black "jamengrand"]
[Result "0-1"]
[WhiteElo "2367"]
[BlackElo "2483"]
[TimeControl "180+1"]
[EndTime "15:15:06 PST"]
[Termination "jamengrand won by resignation"]

1. e4 {[%clk 0:03:00.9]} 1... c5 {[%clk 0:02:59.2]} 2. Nf3 {[%clk 0:03:01]} 2...
Nc6 {[%clk 0:02:59.2]} 3. d4 {[%clk 0:03:01.9]} 3... cxd4 {[%clk 0:02:59.5]} 4.
Nxd4 {[%clk 0:03:02.7]} 4... g6 {[%clk 0:03:00.1]} 5. Nc3 {[%clk 0:03:01.8]}
5... Bg7 {[%clk 0:03:00.3]} 6. Nb3 {[%clk 0:03:01.8]} 6... Nf6 {[%clk
0:02:59.6]} 7. Be2 {[%clk 0:03:01.3]} 7... d6 {[%clk 0:02:45.5]} 8. Be3 {[%clk
0:02:56.7]} 8... a5 {[%clk 0:02:38.5]} 9. a4 {[%clk 0:02:56.1]} 9... Nb4 {[%clk
0:02:37.4]} 10. g4 {[%clk 0:02:48.8]} 10... h5 {[%clk 0:02:35.7]} 11. g5 {[%clk
0:02:48.7]} 11... Ng4 {[%clk 0:02:30.6]} 12. Bxg4 {[%clk 0:02:47.2]} 12... hxg4
{[%clk 0:02:28.4]} 13. Bd4 {[%clk 0:02:41.2]} 13... Bxd4 {[%clk 0:02:24.6]} 14.
Nxd4 {[%clk 0:02:40.6]} 14... Qb6 {[%clk 0:02:21.4]} 15. Ndb5 {[%clk 0:02:29.5]}
15... g3 {[%clk 0:01:32.8]} 16. fxg3 {[%clk 0:02:18.2]} 16... Rxh2 {[%clk
0:01:32.4]} 17. Rxh2 {[%clk 0:01:37.1]} 17... Qg1+ {[%clk 0:01:31]} 18. Kd2
{[%clk 0:01:35.5]} 18... Qxh2+ {[%clk 0:01:30.5]} 19. Kc1 {[%clk 0:01:34.6]}
19... Bg4 {[%clk 0:01:23.4]} 20. Qd2 {[%clk 0:01:31.3]} 20... Qg1+ {[%clk
0:01:14.6]} 21. Nd1 {[%clk 0:01:30.3]} 21... Rc8 {[%clk 0:00:56.3]} 22. c3
{[%clk 0:01:22.3]} 22... Bxd1 {[%clk 0:00:36.3]} 23. Qxd1 {[%clk 0:01:19.7]}
23... Qe3+ {[%clk 0:00:35.1]} 24. Qd2 {[%clk 0:01:13.7]} 24... Qxe4 {[%clk
0:00:34.9]} 25. Kd1 {[%clk 0:00:56.7]} 25... Nd3 {[%clk 0:00:29.3]} 26. Ra2
{[%clk 0:00:26.7]} 26... Rc5 {[%clk 0:00:27.5]} 27. Nd4 {[%clk 0:00:25]} 27...
Re5 {[%clk 0:00:26.2]} 28. Kc2 {[%clk 0:00:19.8]} 28... Ne1+ {[%clk 0:00:23.6]}
29. Kb3 {[%clk 0:00:19.4]} 29... Qd5+ {[%clk 0:00:21.9]} 30. Ka3 {[%clk
0:00:19.2]} 30... Qc5+ {[%clk 0:00:18]} 31. b4 {[%clk 0:00:18.8]} 31... Qc4
{[%clk 0:00:16.7]} 32. Rb2 {[%clk 0:00:17.2]} 32... Nd3 {[%clk 0:00:16.5]} 33.
Rb3 {[%clk 0:00:16.7]} 33... axb4+ {[%clk 0:00:15.4]} 34. Rxb4 {[%clk
0:00:10.3]} 34... Nxb4 {[%clk 0:00:15]} 35. cxb4 {[%clk 0:00:10.6]} 35... Re4
{[%clk 0:00:15.3]} 36. Nc2 {[%clk 0:00:08.8]} 36... Re2 {[%clk 0:00:13]} 37. Qd4
{[%clk 0:00:08]} 37... Rxc2 {[%clk 0:00:12.8]} 38. Qh8+ {[%clk 0:00:07.6]} 38...
Kd7 {[%clk 0:00:12.4]} 39. Qa1 {[%clk 0:00:06.6]} 39... Qc3+ {[%clk 0:00:11.7]}
40. Qxc3 {[%clk 0:00:06.4]} 40... Rxc3+ {[%clk 0:00:12.1]} 41. Kb2 {[%clk
0:00:07.3]} 41... Rxg3 {[%clk 0:00:12.1]} 42. b5 {[%clk 0:00:08]} 42... Rxg5
{[%clk 0:00:12.1]} 43. b6 {[%clk 0:00:08.9]} 43... Ra5 {[%clk 0:00:12.1]} 0-1

[Event "Late-Titled-Tuesday-Blitz-March-05-2024"]
[Site "Chess.com"]
[Date "2024.03.05"]
[Round "7"]
[White "aceontheturn"]
[Black "ckgchess"]
[Result "0-1"]
[WhiteElo "2802"]
[BlackElo "2926"]
[TimeControl "180+1"]
[EndTime "15:15:07 PST"]
[Termination "ckgchess won on time"]

1. e4 {[%clk 0:03:00.9]} 1... c5 {[%clk 0:02:58.4]} 2. Nc3 {[%clk 0:03:01.5]}
2... d6 {[%clk 0:02:58.4]} 3. f4 {[%clk 0:03:01.5]} 3... g6 {[%clk 0:02:58.2]}
4. Nf3 {[%clk 0:03:02.3]} 4... Bg7 {[%clk 0:02:58.8]} 5. Bb5+ {[%clk 0:03:03.1]}
5... Bd7 {[%clk 0:02:58.9]} 6. O-O {[%clk 0:03:02.3]} 6... Bxb5 {[%clk
0:02:56.5]} 7. Nxb5 {[%clk 0:03:03.2]} 7... Nc6 {[%clk 0:02:56.8]} 8. d3 {[%clk
0:03:03.8]} 8... a6 {[%clk 0:02:54.5]} 9. Nc3 {[%clk 0:03:03.9]} 9... e6 {[%clk
0:02:53]} 10. f5 {[%clk 0:03:03.9]} 10... Nf6 {[%clk 0:02:44.5]} 11. fxe6 {[%clk
0:03:02.5]} 11... fxe6 {[%clk 0:02:44.7]} 12. e5 {[%clk 0:02:51.5]} 12... dxe5
{[%clk 0:02:36.8]} 13. Ng5 {[%clk 0:02:40.6]} 13... Qe7 {[%clk 0:01:58.2]} 14.
Nge4 {[%clk 0:02:37.5]} 14... O-O {[%clk 0:01:28.6]} 15. Bg5 {[%clk 0:02:33.9]}
15... Nd4 {[%clk 0:01:29]} 16. Qd2 {[%clk 0:02:07]} 16... Nxe4 {[%clk
0:01:14.3]} 17. Nxe4 {[%clk 0:02:07.4]} 17... Qc7 {[%clk 0:01:12.6]} 18. Be3
{[%clk 0:01:49.7]} 18... b6 {[%clk 0:01:07.3]} 19. Bxd4 {[%clk 0:01:48.7]} 19...
exd4 {[%clk 0:01:01.7]} 20. a4 {[%clk 0:01:32.7]} 20... c4 {[%clk 0:00:48.1]}
21. Qe2 {[%clk 0:01:13]} 21... cxd3 {[%clk 0:00:41.5]} 22. cxd3 {[%clk
0:01:13.9]} 22... Qe5 {[%clk 0:00:41.9]} 23. Rxf8+ {[%clk 0:01:04.3]} 23... Rxf8
{[%clk 0:00:41.9]} 24. Rf1 {[%clk 0:01:05.2]} 24... Rf5 {[%clk 0:00:26.4]} 25.
Qc2 {[%clk 0:00:44.6]} 25... Bf8 {[%clk 0:00:15.7]} 26. Re1 {[%clk 0:00:32.7]}
26... Bh6 {[%clk 0:00:14.2]} 27. Qc8+ {[%clk 0:00:19.2]} 27... Rf8 {[%clk
0:00:14.4]} 28. Qxa6 {[%clk 0:00:19.6]} 28... Be3+ {[%clk 0:00:15]} 29. Kh1
{[%clk 0:00:20]} 29... Qc7 {[%clk 0:00:11.4]} 30. Qb5 {[%clk 0:00:15.3]} 30...
Qc2 {[%clk 0:00:07.8]} 31. Qe5 {[%clk 0:00:14.3]} 31... Qxd3 {[%clk 0:00:04.6]}
32. Qxe6+ {[%clk 0:00:14.9]} 32... Kg7 {[%clk 0:00:04.7]} 33. Qe5+ {[%clk
0:00:14.8]} 33... Kh6 {[%clk 0:00:04.9]} 34. Nf6 {[%clk 0:00:05.8]} 34... Qf5
{[%clk 0:00:03.7]} 35. Qxf5 {[%clk 0:00:01.2]} 35... gxf5 {[%clk 0:00:04.6]} 36.
Nd5 {[%clk 0:00:01.9]} 36... Rd8 {[%clk 0:00:03.6]} 0-1

[Event "Late-Titled-Tuesday-Blitz-March-05-2024"]
[Site "Chess.com"]
[Date "2024.03.05"]
[Round "7"]
[White "TheMagician"]
[Black "FMOlexandrProhorov"]
[Result "1-0"]
[WhiteElo "2215"]
[BlackElo "2339"]
[TimeControl "180+1"]
[EndTime "15:15:07 PST"]
[Termination "TheMagician won on time"]

1. d4 {[%clk 0:03:00.9]} 1... g6 {[%clk 0:02:42.2]} 2. e4 {[%clk 0:02:52.7]}
2... Bg7 {[%clk 0:02:36.5]} 3. Nc3 {[%clk 0:02:40.8]} 3... c6 {[%clk 0:02:32.3]}
4. h3 {[%clk 0:02:30.5]} 4... d6 {[%clk 0:02:23.9]} 5. Bc4 {[%clk 0:02:17.2]}
5... Nf6 {[%clk 0:02:17.3]} 6. Bb3 {[%clk 0:02:13.1]} 6... O-O {[%clk
0:02:15.2]} 7. Qe2 {[%clk 0:02:08.1]} 7... e5 {[%clk 0:02:04.2]} 8. dxe5 {[%clk
0:02:07.3]} 8... dxe5 {[%clk 0:02:04.2]} 9. Bg5 {[%clk 0:02:04.6]} 9... Qc7
{[%clk 0:02:03.6]} 10. Bxf6 {[%clk 0:02:04.1]} 10... Bxf6 {[%clk 0:02:03.2]} 11.
h4 {[%clk 0:01:58.1]} 11... h5 {[%clk 0:02:01.5]} 12. O-O-O {[%clk 0:01:53.5]}
12... b5 {[%clk 0:01:58.8]} 13. Qf3 {[%clk 0:01:19.6]} 13... Bg7 {[%clk
0:01:46]} 14. Nce2 {[%clk 0:01:19.2]} 14... a5 {[%clk 0:01:43.5]} 15. a3 {[%clk
0:01:16.6]} 15... Nd7 {[%clk 0:01:40.6]} 16. Ba2 {[%clk 0:01:15.4]} 16... Nc5
{[%clk 0:01:33.5]} 17. Qe3 {[%clk 0:01:11.3]} 17... Ne6 {[%clk 0:01:30.9]} 18.
g3 {[%clk 0:01:08.2]} 18... Kh7 {[%clk 0:01:26.4]} 19. Kb1 {[%clk 0:01:07.6]}
19... Bh6 {[%clk 0:00:59.4]} 20. Qf3 {[%clk 0:01:07.5]} 20... Nd4 {[%clk
0:00:40]} 21. Nxd4 {[%clk 0:01:06.8]} 21... Bg4 {[%clk 0:00:37.9]} 22. Qc3
{[%clk 0:00:49.9]} 22... exd4 {[%clk 0:00:37.5]} 23. Rxd4 {[%clk 0:00:29.1]}
23... Bg7 {[%clk 0:00:37.3]} 24. f3 {[%clk 0:00:27.7]} 24... Be6 {[%clk
0:00:33]} 25. Bxe6 {[%clk 0:00:22.5]} 25... fxe6 {[%clk 0:00:33.3]} 26. Ne2
{[%clk 0:00:09.6]} 26... c5 {[%clk 0:00:29.6]} 27. f4 {[%clk 0:00:09.1]} 27...
b4 {[%clk 0:00:20.3]} 28. Qc4 {[%clk 0:00:08.4]} 28... Bxd4 {[%clk 0:00:10.5]}
29. Nxd4 {[%clk 0:00:08]} 29... Qf7 {[%clk 0:00:04.1]} 30. Nxe6 {[%clk
0:00:07.3]} 30... Kg8 {[%clk 0:00:04.2]} 31. f5 {[%clk 0:00:04.6]} 31... bxa3
{[%clk 0:00:03.7]} 32. b3 {[%clk 0:00:04]} 32... a4 {[%clk 0:00:03.4]} 33. Nxf8
{[%clk 0:00:03.2]} 33... Qxc4 {[%clk 0:00:02.2]} 34. bxc4 {[%clk 0:00:03.3]} 1-0

[Event "Late-Titled-Tuesday-Blitz-March-05-2024"]
[Site "Chess.com"]
[Date "2024.03.05"]
[Round "7"]
[White "Bugcrusher"]
[Black "AccioChess"]
[Result "0-1"]
[WhiteElo "2515"]
[BlackElo "2414"]
[TimeControl "180+1"]
[EndTime "15:15:08 PST"]
[Termination "AccioChess won on time"]

1. e4 {[%clk 0:02:56.2]} 1... c5 {[%clk 0:02:53.7]} 2. Nc3 {[%clk 0:02:54.7]}
2... Nc6 {[%clk 0:02:54.6]} 3. Bb5 {[%clk 0:02:53.7]} 3... Nf6 {[%clk
0:02:53.6]} 4. Bxc6 {[%clk 0:02:51.3]} 4... dxc6 {[%clk 0:02:53]} 5. d3 {[%clk
0:02:48.7]} 5... e5 {[%clk 0:02:52.9]} 6. f4 {[%clk 0:02:47.9]} 6... Bd6 {[%clk
0:02:33.9]} 7. Nf3 {[%clk 0:02:29.6]} 7... Bg4 {[%clk 0:02:33]} 8. h3 {[%clk
0:02:27.4]} 8... Bxf3 {[%clk 0:02:32.2]} 9. Qxf3 {[%clk 0:02:28.3]} 9... exf4
{[%clk 0:02:31.4]} 10. Bxf4 {[%clk 0:02:27.2]} 10... Qc7 {[%clk 0:02:28.7]} 11.
Bxd6 {[%clk 0:02:13.5]} 11... Qxd6 {[%clk 0:02:29.6]} 12. O-O-O {[%clk
0:02:12.9]} 12... O-O {[%clk 0:02:18.2]} 13. g4 {[%clk 0:02:08.7]} 13... Nd7
{[%clk 0:02:17.7]} 14. g5 {[%clk 0:01:59.6]} 14... b5 {[%clk 0:02:13.7]} 15. Ne2
{[%clk 0:01:54.3]} 15... a5 {[%clk 0:02:10.6]} 16. Qg3 {[%clk 0:01:43.9]} 16...
Ne5 {[%clk 0:02:03.5]} 17. h4 {[%clk 0:01:29.1]} 17... a4 {[%clk 0:02:02.8]} 18.
h5 {[%clk 0:01:27.5]} 18... a3 {[%clk 0:02:02.9]} 19. b3 {[%clk 0:01:26.9]}
19... f5 {[%clk 0:01:46.7]} 20. gxf6 {[%clk 0:00:44.9]} 20... Qxf6 {[%clk
0:01:43.5]} 21. h6 {[%clk 0:00:39.5]} 21... g6 {[%clk 0:01:28.7]} 22. Rdf1
{[%clk 0:00:36.7]} 22... Nf3 {[%clk 0:01:22.2]} 23. e5 {[%clk 0:00:33.6]} 23...
Qxe5 {[%clk 0:01:16.2]} 24. Rxf3 {[%clk 0:00:31.8]} 24... Qa1+ {[%clk
0:01:06.3]} 25. Kd2 {[%clk 0:00:29.4]} 25... Qxh1 {[%clk 0:01:07.2]} 26. Rxf8+
{[%clk 0:00:13.2]} 26... Rxf8 {[%clk 0:01:08.1]} 27. Qe3 {[%clk 0:00:12.2]}
27... Qf3 {[%clk 0:00:43.1]} 28. Qe6+ {[%clk 0:00:11.3]} 28... Qf7 {[%clk
0:00:41]} 29. Qxc6 {[%clk 0:00:10.9]} 29... c4 {[%clk 0:00:31.1]} 30. bxc4
{[%clk 0:00:10]} 30... bxc4 {[%clk 0:00:30]} 31. dxc4 {[%clk 0:00:09.6]} 31...
Rd8+ {[%clk 0:00:27.1]} 32. Kc3 {[%clk 0:00:09.7]} 32... Qe7 {[%clk 0:00:17.5]}
33. Nd4 {[%clk 0:00:08.2]} 33... Qe3+ {[%clk 0:00:16.4]} 34. Kb4 {[%clk
0:00:06.3]} 34... Qxd4 {[%clk 0:00:13.2]} 35. Qe6+ {[%clk 0:00:06.4]} 35... Kh8
{[%clk 0:00:12.8]} 36. Kb5 {[%clk 0:00:05.9]} 36... Qb2+ {[%clk 0:00:12]} 37.
Kc6 {[%clk 0:00:05.3]} 37... Qd4 {[%clk 0:00:11.4]} 38. c5 {[%clk 0:00:04.3]}
38... g5 {[%clk 0:00:09.5]} 39. c4 {[%clk 0:00:04.1]} 39... g4 {[%clk
0:00:09.6]} 0-1

[Event "Late-Titled-Tuesday-Blitz-March-05-2024"]
[Site "Chess.com"]
[Date "2024.03.05"]
[Round "7"]
[White "MathiasWomacka"]
[Black "Hamisandwich"]
[Result "0-1"]
[WhiteElo "2542"]
[BlackElo "2669"]
[TimeControl "180+1"]
[EndTime "15:15:10 PST"]
[Termination "Hamisandwich won on time"]

1. e4 {[%clk 0:03:00.9]} 1... c5 {[%clk 0:02:57.8]} 2. Nf3 {[%clk 0:03:00.4]}
2... d6 {[%clk 0:02:57.6]} 3. d4 {[%clk 0:02:59.4]} 3... cxd4 {[%clk 0:02:58.5]}
4. Nxd4 {[%clk 0:02:59.2]} 4... Nf6 {[%clk 0:02:59.4]} 5. Nc3 {[%clk 0:02:58.8]}
5... Nc6 {[%clk 0:02:59.9]} 6. Be2 {[%clk 0:02:57.8]} 6... Bd7 {[%clk
0:02:58.7]} 7. O-O {[%clk 0:02:55.7]} 7... a6 {[%clk 0:02:58.2]} 8. Be3 {[%clk
0:02:54.2]} 8... Rc8 {[%clk 0:02:53.8]} 9. a4 {[%clk 0:02:40.5]} 9... Nxd4
{[%clk 0:02:44.8]} 10. Qxd4 {[%clk 0:02:38]} 10... e5 {[%clk 0:02:44.1]} 11. Qd2
{[%clk 0:02:20.4]} 11... h6 {[%clk 0:02:43.9]} 12. a5 {[%clk 0:02:19]} 12... Qc7
{[%clk 0:02:38.5]} 13. f3 {[%clk 0:01:58.1]} 13... Be7 {[%clk 0:02:36]} 14. Rfc1
{[%clk 0:01:48.8]} 14... O-O {[%clk 0:02:33.9]} 15. Nd5 {[%clk 0:01:48.2]} 15...
Nxd5 {[%clk 0:02:32.2]} 16. exd5 {[%clk 0:01:49.1]} 16... f5 {[%clk 0:02:28.1]}
17. c4 {[%clk 0:01:47]} 17... Qd8 {[%clk 0:02:04.4]} 18. b4 {[%clk 0:01:42.1]}
18... Bg5 {[%clk 0:01:57.7]} 19. Bxg5 {[%clk 0:01:36.7]} 19... Qxg5 {[%clk
0:01:58.6]} 20. Qxg5 {[%clk 0:01:35.9]} 20... hxg5 {[%clk 0:01:59.5]} 21. c5
{[%clk 0:01:35.6]} 21... Bb5 {[%clk 0:01:02.5]} 22. Bxb5 {[%clk 0:01:30.5]}
22... axb5 {[%clk 0:01:03.4]} 23. a6 {[%clk 0:01:16.3]} 23... bxa6 {[%clk
0:01:03.5]} 24. Rxa6 {[%clk 0:01:16.3]} 24... dxc5 {[%clk 0:01:04.4]} 25. bxc5
{[%clk 0:01:16]} 25... Rfd8 {[%clk 0:01:05]} 26. d6 {[%clk 0:01:13.1]} 26... b4
{[%clk 0:01:01.6]} 27. Rb6 {[%clk 0:00:59.9]} 27... b3 {[%clk 0:01:00.3]} 28.
Kf2 {[%clk 0:00:52.7]} 28... Kf7 {[%clk 0:00:55.4]} 29. Rxb3 {[%clk 0:00:28.7]}
29... Rxd6 {[%clk 0:00:53.3]} 30. Rb7+ {[%clk 0:00:23.2]} 30... Kf6 {[%clk
0:00:44.7]} 31. cxd6 {[%clk 0:00:22.3]} 31... Rxc1 {[%clk 0:00:45.6]} 32. d7
{[%clk 0:00:20]} 32... Rd1 {[%clk 0:00:44]} 33. Ke2 {[%clk 0:00:19]} 33... Rd5
{[%clk 0:00:37.7]} 34. g3 {[%clk 0:00:14.6]} 34... g4 {[%clk 0:00:28]} 35. fxg4
{[%clk 0:00:14.1]} 35... fxg4 {[%clk 0:00:28.9]} 36. Ke3 {[%clk 0:00:13.4]}
36... g5 {[%clk 0:00:24]} 37. Ke4 {[%clk 0:00:12.5]} 37... Rd4+ {[%clk
0:00:24.5]} 38. Ke3 {[%clk 0:00:12.4]} 38... Ke6 {[%clk 0:00:22]} 39. Rb6+
{[%clk 0:00:10]} 39... Kf5 {[%clk 0:00:20.5]} 40. Rb7 {[%clk 0:00:09]} 40... Ke6
{[%clk 0:00:20.8]} 41. Rb6+ {[%clk 0:00:09.2]} 41... Kxd7 {[%clk 0:00:14.9]} 42.
Rg6 {[%clk 0:00:08.6]} 42... Ke7 {[%clk 0:00:15.5]} 43. Rxg5 {[%clk 0:00:08.6]}
43... Kf6 {[%clk 0:00:16.4]} 44. Rg6+ {[%clk 0:00:08.6]} 44... Kxg6 {[%clk
0:00:16.3]} 0-1